Cogmind - Beta 10 X2 @@@ ROGUE MODE // 2020.09.03 @ 00:28:04 Player: Torako Result: Destroyed by as-36320 with Assembled Maul Performance ------------- Evolutions (0) 0 Regions Visited (4) 800 Robots Destroyed (14) 70 Value Destroyed (410) 410 Prototype IDs (2) 40 Alien Tech Used (0) 0 Bonus (0) 0 TOTAL SCORE: 1320 Bonus ------- None Cogmind --------- Core Integrity 0/250 Matter 254/300 Energy 100/100 System Corruption 3% Temperature Cool (0) Movement Core (1150) Ox22 Location -9/Mines Parts ------- > --- POWER (1) -------- (None) > --- PROPULSION (2) --- (None) > --- UTILITY (2) ------ High-capacity Storage Unit High-capacity Storage Unit > --- WEAPON (2) ------- Light Assault Rifle Heavy Assault Rifle > --- INVENTORY (20) --- Light Ion Engine Light Ion Engine Nuclear Core Reinforced Deuterium Engine Fission Core High-capacity Storage Unit High-capacity Matter Pod (200) High-capacity Matter Pod (200) Targeting Computer Medium Armor Plating Medium Armor Plating Medium Armor Plating Plasma Cutter Peak State ------------ > --- POWER ------------ Ion Engine > --- PROPULSION ------- Aluminum Leg Wheel > --- UTILITY ---------- Large Storage Unit High-capacity Storage Unit > --- WEAPON ----------- Heavy Assault Rifle Heavy Assault Rifle > --- INVENTORY -------- Light Ion Engine Light Ion Engine Nuclear Core Reinforced Deuterium Engine Fission Core Large Storage Unit Large Storage Unit Large Storage Unit Large Storage Unit Targeting Computer Medium Armor Plating Medium Armor Plating Medium Armor Plating Light Assault Rifle Heavy Assault Rifle Heavy Assault Rifle [Rating: 12] Favorites ----------- Power Ion Engine Engine Ion Engine Propulsion Light Treads Treads Light Treads Leg Aluminum Leg Wheel Wheel Utility High-capacity Storage Unit Storage High-capacity Storage Unit Protection Medium Armor Plating Weapon Heavy Assault Rifle Energy Gun Medium Laser Ballistic Gun Heavy Assault Rifle Build | -11 -10 -10 -10 -9 ------- Run | Scr Mat Min Exi Min Slots Evolved . | . . . . . Power . | . . . . . Propulsion . | . . . . . Utility . | . . . . . Weapon . | . . . . . Parts Attached 19 | . 12 2 2 3 Power 2 | . 1 1 . . Engine 2 | . 1 1 . . Core . | . . . . . Reactor . | . . . . . Propulsion 5 | . 4 1 . . Treads 2 | . 2 . . . Leg 1 | . . 1 . . Wheel 2 | . 2 . . . Hover . | . . . . . Flight . | . . . . . Utility 7 | . 5 . 2 . Device . | . . . . . Storage 6 | . 4 . 2 . Processor . | . . . . . Hackware . | . . . . . Protection 1 | . 1 . . . Artifact . | . . . . . Weapon 5 | . 2 . . 3 Energy Gun . | . . . . . Energy Cannon . | . . . . . Ballistic Gun 5 | . 2 . . 3 Ballistic Cannon . | . . . . . Launcher . | . . . . . Special Weapon . | . . . . . Impact Weapon . | . . . . . Slashing Weapon . | . . . . . Piercing Weapon . | . . . . . Special Melee Weapon . | . . . . . Unidentified Prototypes . | . . . . . Parts Lost 11 | . 4 1 . 6 Power 1 | . . . . 1 Propulsion 5 | . 2 1 . 2 Utility . | . . . . . Weapon 5 | . 2 . . 3 Highest Loss Streak 6 | . 4 1 . 6 Average Slot Usage (%) 99 | . 99 99 100 96 Engine 13 | . 14 14 14 13 Treads 10 | . 22 . . . Leg 8 | . 2 10 14 12 Wheel 8 | . 2 16 14 13 Storage 26 | . 25 28 28 28 Energy Gun 5 | . 12 . . . Ballistic Gun 22 | . 15 28 28 26 Naked Turns . | . . . . . Heaviest Build 75 | 11 59 59 75 75 Greatest Support 40 | 20 40 20 10 10 Greatest Overweight (x) 7 | . 2 5 7 7 Average Overweight (x) 3 | . . 4 5 6 Largest Inventory Capacity 20 | . 18 18 20 20 Average Capacity 17 | . 16 18 18 20 Most Carried 18 | . 15 15 18 16 Average Carried 13 | . 12 12 15 15 Final Capacity 20 | 6 18 18 20 20 Final Carried 15 | 6 12 13 15 13 Class Distribution -------------------- 78% | Mutant 21% | Hauler-Mutant Dominant Class ---------------- Mutant | -10/Materials Mutant | -10/Mines Mutant | -10/Exiles Hauler-Mutant | -9/Mines Resources | -11 -10 -10 -10 -9 ----------- Run | Scr Mat Min Exi Min Matter Collected 627 | 200 182 110 135 . Remotely . | . . . . . Salvage Created 509 | . 385 124 . . Parts 19 | . 12 7 . . Haulers Intercepted . | . . . . . Recyclers Shooed . | . . . . . Parts Field Recycled . | . . . . . Retrieved Matter . | . . . . . Parts Self-Destructed . | . . . . . Prevented . | . . . . . Kills | -11 -10 -10 -10 -9 ------- Run | Scr Mat Min Exi Min Combat Hostiles Destroyed 13 | . 8 5 . . Guns 13 | . 8 5 . . Classes Destroyed 3 | . 2 1 . . Worker 1 | . 1 . . . Swarmer 3 | . . 3 . . Grunt 10 | . 8 2 . . Best Kill Streak 3 | . 2 3 . . Combat Bots Only 3 | . 2 3 . . Max Kills in Single Turn 2 | . 2 2 . . Gunslinging 1 | . 1 1 . . Exploded . | . . . . . Melee . | . . . . . Uniques/NPCs Destroyed . | . . . . . Combat | -11 -10 -10 -10 -9 -------- Run | Scr Mat Min Exi Min Damage Taken 1606 | . 767 127 . 712 Core 266 | . 121 9 . 136 Absorbed by Shields . | . . . . . Core Remaining (%) 100 | 100 . . . . Volleys Fired 48 | . 28 11 . 9 Largest 2 | . 2 2 . 2 Hottest 70 | . 70 46 . 46 Shots Fired 96 | . 56 22 . 18 Gun 96 | . 56 22 . 18 Cannon . | . . . . . Launcher . | . . . . . Special . | . . . . . Kinetic 77 | . 37 22 . 18 Thermal 19 | . 19 . . . Explosive . | . . . . . Electromagnetic . | . . . . . Robot Hit Streak 8 | . 8 5 . 2 Robot Miss Streak 3 | . 2 3 . 3 Penetration Max . | . . . . . Secondary Targets 3 | . 2 1 . . Max Gunslinging Chain 1 | . 1 1 . . Shots Hit Robots 63 | . 43 14 . 6 Core Hits 28 | . 18 7 . 3 Critical Hits . | . . . . . Critical Kills . | . . . . . Critical Parts Destroyed . | . . . . . Melee Attacks . | . . . . . Impact . | . . . . . Slashing . | . . . . . Piercing . | . . . . . Sneak Attacks . | . . . . . Combat Hostiles . | . . . . . Follow-up Attacks . | . . . . . Damage Inflicted 914 | . 586 220 . 108 Guns 914 | . 586 220 . 108 Cannons . | . . . . . Explosions . | . . . . . Melee . | . . . . . Ramming . | . . . . . Kinetic 694 | . 366 220 . 108 Thermal 220 | . 220 . . . Explosive . | . . . . . Electromagnetic . | . . . . . Impact . | . . . . . Slashing . | . . . . . Piercing . | . . . . . Highest Corruption 3 | . 3 3 3 3 Average Corruption 2 | . 2 3 3 3 Corruption Purged . | . . . . . Effects 19 | . 1 4 10 4 Message Errors 4 | . 1 1 . 2 Matter Fused 4 | . . . 4 . Heat Flow Errors 2 | . . . 2 . Energy Discharges 4 | . . 1 2 1 Data Loss (minor) 4 | . . 1 2 1 Targeting Errors 1 | . . 1 . . Overload Shots . | . . . . . Overflow Damage . | . . . . . Projectiles . | . . . . . Explosions . | . . . . . Melee . | . . . . . Knockbacks . | . . . . . Impact . | . . . . . Kinetic . | . . . . . Secondary . | . . . . . Self-Inflicted Damage . | . . . . . Shots . | . . . . . Rammed . | . . . . . Targets Rammed . | . . . . . Kicked . | . . . . . Crushed . | . . . . . Highest Temperature 164 | . 129 4 164 . Average Temperature 61 | . 60 4 81 . Received Heat Transfer 417 | . 372 45 . . Siege Activations . | . . . . . Robots Corrupted . | . . . . . Combat Hostiles . | . . . . . Parts Fried . | . . . . . Impact Corruptions . | . . . . . Robots Melted . | . . . . . Combat Hostiles . | . . . . . Parts Melted 1 | . 1 . . . Heat Transferred 629 | . 629 . . . Parts Sabotaged . | . . . . . Parts Stolen . | . . . . . Parts Stripped . | . . . . . Power Chain Reactions . | . . . . . Missiles Intercepted . | . . . . . Alert | -11 -10 -10 -10 -9 ------- Run | Scr Mat Min Exi Min Peak Influence 158 | . 158 128 . . Average Influence 59 | . 70 90 . . Maximum Alert Level . | . . . . . Low Security (%) 100 | . 100 100 . 100 Level 1 . | . . . . . Level 2 . | . . . . . Level 3 . | . . . . . Level 4 . | . . . . . Level 5 . | . . . . . High Security . | . . . . . Max Security . | . . . . . Squads Dispatched 1 | . 1 . . . Investigation 1 | . 1 . . . Extermination . | . . . . . Reinforcement . | . . . . . Assault . | . . . . . Garrison . | . . . . . Intercept . | . . . . . Construction Impeded . | . . . . . Haulers Reinforced . | . . . . . Stealth | -11 -10 -10 -10 -9 --------- Run | Scr Mat Min Exi Min Distress Signals . | . . . . . Communications Jammed . | . . . . . Distress Signals . | . . . . . Times Spotted 43 | . 11 5 . 27 Peak Tracking Total 17 | . 4 3 . 17 Tactical Retreats 1 | . . . . 1 Traps | -11 -10 -10 -10 -9 ------- Run | Scr Mat Min Exi Min Traps Triggered 3 | . 3 . . . Indirectly . | . . . . . Trap Hack Attempts . | . . . . . Triggered . | . . . . . Disarmed . | . . . . . Reprogrammed . | . . . . . Reused . | . . . . . Traps Extracted . | . . . . . Installed . | . . . . . Triggered . | . . . . . Machines | -11 -10 -10 -10 -9 ---------- Run | Scr Mat Min Exi Min Machines Disabled . | . . . . . Max in Single Turn . | . . . . . Machines Sabotaged . | . . . . . Garrisons Compromised . | . . . . . Overloaded Fab Kills . | . . . . . Fab Network Shutdowns . | . . . . . Hacking | -11 -10 -10 -10 -9 --------- Run | Scr Mat Min Exi Min Machines Accessed 9 | . 8 . 1 . Terminals 6 | . 6 . . . Fabricators . | . . . . . Repair Stations . | . . . . . Recycling Units 2 | . 2 . . . Scanalyzers . | . . . . . Garrison Access . | . . . . . Total Hacks 27 | . 22 . 5 . Successful 15 | . 10 . 5 . Failed 12 | . 12 . . . Catastrophic 1 | . 1 . . . Database Lockouts . | . . . . . Manual 11 | . 11 . . . Terminals 15 | . 15 . . . Fabricators . | . . . . . Repair Stations . | . . . . . Recycling Units 7 | . 7 . . . Scanalyzers . | . . . . . Garrison Access . | . . . . . Terminal Hacks 9 | . 4 . 5 . Record 5 | . . . 5 . Robot Analysis 1 | . 1 . . . Prototype ID Bank 1 | . 1 . . . Recall Investigation 1 | . 1 . . . Zone Layout 1 | . 1 . . . Fabricator Hacks . | . . . . . Repair Station Hacks . | . . . . . Recycling Unit Hacks 3 | . 3 . . . Report Inventory 2 | . 2 . . . Retrieve Components 1 | . 1 . . . Scanalyzer . | . . . . . Garrison Access Hacks . | . . . . . Unauthorized Hacks 3 | . 3 . . . Terminals 3 | . 3 . . . Track 2 | . 2 . . . Botnet 1 | . 1 . . . Fabricators . | . . . . . Repair Stations . | . . . . . Recycling Units . | . . . . . Scanalyzers . | . . . . . Garrison Access . | . . . . . Data Cores Recovered . | . . . . . Used . | . . . . . Hacking Detections 7 | . 7 . . . Full Trace Events 2 | . 2 . . . Feedback Events . | . . . . . Feedback Blocked . | . . . . . Robot Schematics Acquired . | . . . . . Robots Built . | . . . . . Matter . | . . . . . Time . | . . . . . Total Robot Build Rating . | . . . . . Part Schematics Acquired . | . . . . . Parts Built . | . . . . . Matter . | . . . . . Time . | . . . . . Total Part Build Rating . | . . . . . Parts Repaired . | . . . . . Time . | . . . . . Parts Recycled . | . . . . . Recycled Matter . | . . . . . Retrieved Matter . | . . . . . Retrieved Components 2 | . 2 . . . Parts Scanalyzed . | . . . . . Part Schematics Acquired . | . . . . . Parts Damaged . | . . . . . Bothacking | -11 -10 -10 -10 -9 ------------ Run | Scr Mat Min Exi Min Used RIF Installer . | . . . . . Robots Hacked . | . . . . . Non-combat . | . . . . . Combat . | . . . . . Robot Hacks Applied . | . . . . . Relay Couplers Released . | . . . . . Robots Rewired . | . . . . . Allies Hacked . | . . . . . Hacks Repelled . | . . . . . Allies | -11 -10 -10 -10 -9 -------- Run | Scr Mat Min Exi Min Total Allies . | . . . . . Largest Group . | . . . . . Highest-Rated Group . | . . . . . Highest-Rated Ally . | . . . . . Total Orders . | . . . . . Ally Attacks . | . . . . . Total Damage . | . . . . . Kills . | . . . . . Allies Corrupted . | . . . . . Allies Melted . | . . . . . Intel | -11 -10 -10 -10 -9 ------- Run | Scr Mat Min Exi Min Robot Analysis Total 1 | . 1 . . . Derelict Logs Recovered 2 | . . 1 . 1 Drone Launches . | . . . . . Drone Recoveries . | . . . . . Exploration | -11 -10 -10 -10 -9 ------------- Run | Scr Mat Min Exi Min Turns Passed 1810 | . 831 180 564 235 Spaces Moved 1092 | 1 436 107 410 138 Core . | . . . . . Treads 332 | . 332 . . . Legs 52 | 1 51 . . . Wheels 708 | . 53 107 410 138 Hover . | . . . . . Flight . | . . . . . Fastest Speed 100 | 120 100 100 130 140 Average Speed 146 | 120 161 124 135 149 Slowest Speed 180 | 120 180 130 150 150 Overloaded Moves . | . . . . . Propulsion Burnouts . | . . . . . Robots Hopped . | . . . . . Cave-ins Triggered . | . . . . . Exploration Rate (%) 43 | 2 70 16 87 42 Regions Visited 4 Branch Regions 3 Pre-discovered Areas 1 | . . . 1 . Known Exits Taken 1 | . . . 1 . Unknown Exits Taken 3 | 1 1 1 . . Scrap Searched 1 | . . . . 1 Spaces Dug . | . . . . . Terrain Destroyed . | . . . . . Melee . | . . . . . Projectile . | . . . . . AOE . | . . . . . Actions | -11 -10 -10 -10 -9 --------- Run | Scr Mat Min Exi Min Total 1208 | . 503 132 422 151 Wait 19 | . 12 7 . . Move 1088 | . 435 106 409 138 Hop . | . . . . . Pick Up 22 | . 11 4 6 1 Fast Attach 3 | . 3 . . . Attach 8 | . 4 1 . 3 Detach . | . . . . . Swap 8 | . 5 1 2 . Drop 12 | . 5 2 5 . Fire 48 | . 28 11 . 9 Melee . | . . . . . Ram . | . . . . . Kick . | . . . . . Crush . | . . . . . Escape Stasis . | . . . . . Rewire . | . . . . . Trap . | . . . . . Miscellaneous . | . . . . . Route ------- -11/Scrapyard -10/Materials (discovered 4 exits: [*Mat x3] / [*Min]) -10/Mines -10/Exiles (discovered 2 exits: *Min x2) -9/Mines History --------- Turn | Location | Event 1 | -11/Scrapyard | Discovered new exit (range 0) 1 | -11/Scrapyard | Entered Materials 146 | -10/Materials | Discovered new exit (range 14) 310 | -10/Materials | Build established: Mutant 554 | -10/Materials | Discovered new exit (range 6) 589 | -10/Materials | Discovered new exit (range 15) 792 | -10/Materials | Lost 4 parts (2n2w) 796 | -10/Materials | Discovered new exit (range 12) 832 | -10/Materials | Entered Mines 906 | -10/Mines | Core integrity fell below 50% 1007 | -10/Mines | Deemed a non-threat by the Exiles lab entrance 1007 | -10/Mines | Discovered new exit (range 5) 1012 | -10/Mines | Entered Exiles 1013 | -10/Exiles | Identified exit to Mines 1049 | -10/Exiles | Met 8R-AWN 1071 | -10/Exiles | Met EX-HEX 1112 | -10/Exiles | Met EX-BIN 1208 | -10/Exiles | Met EX-DEC 1214 | -10/Exiles | Learned location of Zion (-6) 1267 | -10/Exiles | Visited The Gauntlet 1576 | -10/Exiles | Entered Mines 1657 | -9/Mines | Learned Materials emergency access door positions 1708 | -9/Mines | Build established: Hauler-Mutant 1755 | -9/Mines | Assembled infested the area 1760 | -9/Mines | Assisted by a Guerilla fighting off Assembled 1796 | -9/Mines | Core integrity fell below 20% 1811 | -9/Mines | Destroyed by as-36320 with Assembled Maul Last Messages --------------- as-54096 destroyed. as-40174 destroyed. U-05 Engineer lays Concrete. U-05 Engineer destroyed. Aluminum Leg destroyed. D-53 Grenadier destroyed. The unstable cave ceiling collapses. as-05741 destroyed. The unstable cave ceiling collapses. Hvy. Assault Rifle destroyed. Ion Engine destroyed. Wheel destroyed. The unstable cave ceiling collapses. Destroyed Asb. Hover Unit. as-68714 destroyed. The unstable cave ceiling collapses. as-88047 destroyed. Knocked back. D-53 Grenadier destroyed. The unstable cave ceiling collapses. Map ----- +----------------------------------------------------+ | ???# #??????# #???????????# ##??????????##### | | ???# #??????# #?########## #??????????# | | ???# #??????# ### #??????????# !!! | | #### ######## ##?????????# !!!! | | ##### ####### ##????????# !!!! | | #???# #?????# #????????# !!! | | ##### #?????# #??????### # | | !#????## #??????# # | | """ """" %%#???## #???????# ###### # | | """ """" ### ######## #???????# #????# # | | """ """" #?# #?# #???????# #????# | | #?# ### ### #???????# #????# | | ############### #?## ##?????## #????## | | ???????????# #####??## ##???## #?????? | | ???????????# ############# ##?## #?????? | | ???????????# #??## ### #?# ##??? | | ??????###### #?## # ### #?# ## | | ??????# #?# # ### #### | | ??????# ######## # # #?## ##?# ## | | ??????# ##!### # #??## #### ###?? | | ??????#%%%%%% a ####?# ##????? | | ??????# ####### % # #?# ## ## ##??????? | | ??????# #??#ggg a ### ## #######???????? | | ??????# #??# % ## ## #?????????????? | | ????? #??# * a ## ## #?????????????? | | ???# ??# [% @ ### ## #?????????????? | | ???# # * * ## ## #?????????????? | | ??# %=% % ## ?????????????? | | ?# !a ## #?????????????? | | ? #### #######? ??????????????? | | #???####??????? ??????????????? | | #??????????????? ??????????????? | | #? ???????????????? ??????????????? | | # ??? # ????????????????? ??????????????? | | ## ?????## ?????????????????#??????????????? | | ?## ??????##?????????????????????????????????? | | ??## ?????????????????????????????????????????? | | ???## ?????????????????????????????????????????? | | ????? ?????????????????????????????????????????? | | ?????????????????????????????????????????????????? | | ?????????????????????????????????????????????????? | | ?????????????????????????????????????????????????? | | ?????????????????????????????????????????????????? | | ?????????????????????????????????????????????????? | | ?????????????????????????????????????????????????? | | ?????????????????????????????????????????????????? | | ?????????????????????????????????????????????????? | | ?????????????????????????????????????????????????? | | ?????????????????????????????????????????????????? | | ?????????????????????????????????????????????????? | +----------------------------------------------------+ Best States ------------- Heat Dissipation 25 Energy Generation 10 Energy Capacity 250 Matter Stores 300 Matter Capacity 300 Sight Range 16 Terrain Scan Density 10 Armor Coverage 225 Evasion (%) 40 Recoil Reduction 2 Item Schematics ----------------- None Robot Schematics ------------------ None Fabricated ------------ Nothing Alien Tech Used ----------------- None Achievements -------------- None Challenges ------------ None Game ------ Seed GravityMakeshiftProjector Manual? 0 Play Time 00:14:02 Cumulative 199.3 hours Start 2020.09.03 @ 00:13:04 End 2020.09.03 @ 00:28:04 Sessions 1 Manual Loads 0 Difficulty Rogue Special Mode None Game No. 220 Rogue 220 Adventurer 0 Explorer 0 Win Type - Total 8 Types 6/0/2/0/0/0/0 Lore% 74 Gallery% 83 Achievement% 62 Wizard Run 0 Options --------- ASCII 0 Keyboard 1 Movement Numpad Keybinds 0 Fullscreen 1 Font 20/SmallcapsGlow Map View 66x50 Tactical HUD 1 Map Filters NONE Filters NONE Steam 1 RUN: 6d3170f1-aeee-4d5c-9a89-eb6a9f94d7ec